fUSD/lending_fUSD_20260401
["ID","MTS","AMOUNT","RATE_DAILY","PERIOD"]
[419198701,1775017839997,-500.0,0.00011052,2]
[419198702,1775017840006,-500.0,0.00011052,2]
[419198703,1775017840015,-500.0,0.00011052,2]
[419198704,1775017840026,-500.0,0.00011052,2]
[419198705,1775017840037,-500.0,0.00011052,2]
[419198706,1775017840046,-151.0,0.00011052,2]
[419198707,1775017840056,-500.0,0.00011052,2]
[419198708,1775017840067,-500.0,0.00011052,2]
[419198709,1775017840078,-500.0,0.00011052,2]
[419198710,1775017840087,-151.0,0.00011052,2]
[419198711,1775017840096,-500.0,0.00011052,2]
[419198712,1775017840105,-500.0,0.00011052,2]
[419198713,1775017840114,-500.0,0.00011052,2]
[419198714,1775017840123,-500.0,0.00011052,2]
[419198715,1775017840132,-500.0,0.00011052,2]
[419198717,1775017840141,-151.0,0.00011052,2]
[419198719,1775017840150,-500.0,0.00011052,2]
[419198721,1775017840159,-500.0,0.00011052,2]
[419198722,1775017840168,-500.0,0.00011052,2]
[419198723,1775017840177,-363.417537,0.00011052,2]
[419198724,1775017840186,-151.0,0.00011052,2]
[419198726,1775017840195,-262.969685,0.00011052,2]
[419198728,1775017840204,-272.369738,0.00011052,2]
[419198730,1775017840213,-272.369738,0.00011052,2]
[419198732,1775017840222,-272.369738,0.00011052,2]
[419198733,1775017840230,-272.369738,0.00011052,2]
[419198735,1775017840239,-151.0,0.00011052,2]
[419198737,1775017840248,-593.888307,0.00011052,2]
[419198739,1775017840257,-593.888307,0.00011052,2]
[419198741,1775017840266,-593.888307,0.00011052,2]
[419198743,1775017840274,-593.888307,0.00011052,2]
[419198745,1775017840283,-500.0,0.00011073,2]
[419198747,1775017840293,-200.0,0.00011096,2]
[419198749,1775017840303,-22537.86943468,0.00011099,2]
[419198751,1775017840312,-22537.86943468,0.00011099,2]
[419198753,1775017840320,-22537.86943468,0.00011099,2]
[419198755,1775017840330,-22537.86943468,0.00011099,2]
[419198757,1775017840339,-22537.86943468,0.00011099,2]
[419198759,1775017840348,-31542.5283414,0.00011099,2]
[419198761,1775017840357,-31542.52834139,0.00011099,2]
[419198763,1775017840366,-31542.52834139,0.00011099,2]
[419198765,1775017840375,-31542.52834139,0.00011099,2]
[419198767,1775017840384,-31542.52834139,0.00011099,2]
[419198769,1775017840393,-269.16,0.00011171,2]
[419198771,1775017840402,-832.7905407,0.00011228,2]
[419198773,1775017840412,-166.66,0.00011254,2]
[419198775,1775017840422,-560.53,0.00011278,2]
[419198777,1775017840431,-167.78,0.00011293,2]
[419198779,1775017840440,-4279.14,0.00011445,2]
[419198781,1775017840450,-1008.38,0.0001147,2]
[419198783,1775017840459,-2000.0,0.00011476,2]
[419198785,1775017840468,-2000.0,0.00011476,2]
[419198786,1775017840477,-2000.0,0.00011476,2]
[419198788,1775017840486,-2000.0,0.00011476,2]
[419198790,1775017840494,-1428.5483315,0.00011502,2]
[419198792,1775017840503,-320.16,0.00011507,2]
[419198794,1775017840513,-2000.0,0.00011531,2]
[419198796,1775017840522,-150.0,0.0001162,2]
[419198798,1775017840531,-150.0,0.0001162,2]
[419198800,1775017840540,-150.0,0.0001162,2]
[419198802,1775017840549,-197.65781346,0.0001162,2]
[419198804,1775017840559,-894.0,0.0001162,2]
[419198806,1775017840568,-894.0,0.0001162,2]
[419198808,1775017840578,-894.0,0.0001162,2]
[419198810,1775017840587,-894.0,0.0001162,2]
[419198812,1775017840596,-894.0,0.0001162,2]
[419198814,1775017840606,-894.0,0.0001162,2]
[419198816,1775017840615,-894.0,0.0001162,2]
[419198818,1775017840623,-500.0,0.0001162,2]
[419198820,1775017840633,-894.0,0.0001162,2]
[419198822,1775017840641,-500.0,0.0001162,2]
[419198824,1775017840651,-894.0,0.0001162,2]
[419198826,1775017840660,-500.0,0.0001162,2]
[419198828,1775017840669,-894.0,0.0001162,2]
[419198830,1775017840677,-500.0,0.0001162,2]
[419198831,1775017840687,-894.0,0.0001162,2]
[419198833,1775017840695,-500.0,0.0001162,2]
[419198835,1775017840705,-894.0,0.0001162,2]
[419198837,1775017840713,-500.0,0.0001162,2]
[419198839,1775017840722,-894.0,0.0001162,2]
[419198841,1775017840732,-167.7403778,0.0001162,2]
[419198843,1775017840741,-894.0,0.0001162,2]
[419198845,1775017840750,-894.0,0.0001162,2]
[419198847,1775017840759,-894.0,0.0001162,2]
[419198849,1775017840769,-894.0,0.0001162,2]
[419198851,1775017840778,-894.0,0.0001162,2]
[419198853,1775017840787,-894.0,0.0001162,2]
[419198855,1775017840796,-894.0,0.0001162,2]
[419198857,1775017840805,-894.0,0.0001162,2]
[419198859,1775017840815,-894.0,0.0001162,2]
[419198861,1775017840824,-894.0,0.0001162,2]
[419198863,1775017840833,-477.69648607,0.00011621,2]
[419198865,1775017840842,-166.66,0.00011625,2]
[419198867,1775017840851,-200.0,0.00011644,2]
[419198869,1775017840860,-250.0,0.00011681,2]
[419198871,1775017840869,-267.77354857,0.00011744,2]
[419198873,1775017840878,-3292.0,0.00011765,2]
[419198875,1775017840887,-736.0,0.00011765,2]
[419198877,1775017840896,-192.8761,0.000118,7]
[419198879,1775017840905,-318.7522179,0.00011849,2]
[419198881,1775017840915,-166.66,0.00011997,2]
[419198883,1775017840924,-899.64837719,0.00012024,2]
[419198885,1775017840933,-553.72186462,0.00012024,2]
[419198887,1775017840942,-2500.0,0.00012024,2]
[419198889,1775017840951,-502.40136321,0.00012024,2]
[419198891,1775017840960,-200.0,0.00012192,2]
[419198893,1775017840969,-10448.4784,0.00012203,2]
[419198895,1775017840978,-7929.242535,0.00012203,2]
[419198896,1775017840988,-8079.223442,0.00012203,2]
[419198898,1775017840996,-178.24174739,0.00012286,2]
[419198900,1775017841006,-6886.34399958,0.00012325,2]
[419198901,1775017841017,-166.66,0.00012368,2]
[419198902,1775017841026,-167.78,0.00012423,2]
[419198903,1775017841035,-472.76556932,0.00012442,2]
[419198904,1775017841044,-440352.1079804,0.00012452,2]
[419198905,1775017841053,-454.1981373,0.00012572,2]
[419198906,1775017841062,-2000.0,0.00012685,2]
[419198907,1775017841071,-151.67371875,0.00012739,2]
[419198908,1775017841080,-166.66,0.00012739,2]
[419198909,1775017841092,-200.0,0.0001274,2]
[419198910,1775017841100,-151.0,0.00012764,2]
[419198911,1775017841109,-151.0,0.00012764,2]
[419198912,1775017841119,-151.0,0.00012764,2]
[419198913,1775017841128,-151.0,0.00012764,2]
[419198914,1775017841137,-151.0,0.00012764,2]
[419198915,1775017841146,-98255.8363753,0.00012764,2]
[419198916,1775017841155,-3326.07,0.00012893,2]
[419198917,1775017841165,-9999.99,0.00012893,2]
[419198918,1775017841173,-1210.26,0.00012893,2]
[419198919,1775017841182,-272.369738,0.00012893,2]
[419198920,1775017841191,-272.369738,0.00012893,2]
[419198921,1775017841200,-272.369738,0.00012893,2]
[419198922,1775017841210,-272.369738,0.00012893,2]
[419198923,1775017841219,-151.0,0.00012893,2]
[419198924,1775017841228,-1252.0,0.0001294,2]
[419198925,1775017841237,-4609.0,0.00012941,2]
[419198926,1775017841246,-150.8971769,0.00012987,2]
[419198927,1775017841255,-582.36322254,0.00012987,2]
[419198928,1775017841264,-563.08991274,0.00012987,2]
[419198929,1775017841273,-150.71620521,0.00012987,2]
[419198930,1775017841283,-168.31958609,0.00012987,2]
[419198931,1775017841291,-250.0,0.00013,2]
[419198932,1775017841300,-504.0,0.00013111,2]
[419198933,1775017841309,-166.66,0.00013111,2]
[419198934,1775017841319,-248.0081,0.000132,12]
[419198935,1775017841328,-393.14256495,0.0001326,2]
[419198936,1775017841337,-1183.35981649,0.0001326,2]
[419198937,1775017841346,-395.66700344,0.0001326,2]
[419198938,1775017841355,-1328.60421494,0.0001326,2]
[419198939,1775017841364,-338.7181834,0.0001326,2]
[419198940,1775017841374,-200.0,0.00013288,2]
[419198941,1775017841384,-3240.0,0.00013425,2]
[419198942,1775017841393,-167.78,0.00013552,2]
[419198943,1775017841402,-500.0,0.00013698,2]
[419198944,1775017841411,-500.0,0.00013698,2]
[419198945,1775017841421,-500.0,0.00013698,2]
[419198946,1775017841431,-500.0,0.00013698,2]
[419198947,1775017841441,-500.0,0.00013698,2]
[419198948,1775017841450,-500.0,0.00013698,2]
[419198949,1775017841459,-500.0,0.00013698,2]
[419198950,1775017841467,-500.0,0.00013698,2]
[419198951,1775017841476,-600.26504985,0.00013698,2]
[419198952,1775017841486,-500.0,0.00013698,2]
[419198953,1775017841495,-500.0,0.00013698,2]
[419198954,1775017841503,-500.0,0.00013698,2]
[419198955,1775017841512,-500.0,0.00013698,2]
[419198956,1775017841521,-500.0,0.00013698,2]
[419198957,1775017841530,-183.58723642,0.00013698,2]
[419198958,1775017841539,-500.0,0.00013698,2]
[419198959,1775017841548,-500.0,0.00013698,2]
[419198960,1775017841557,-500.0,0.00013698,2]
[419198961,1775017841567,-500.0,0.00013698,2]
[419198962,1775017841576,-500.0,0.00013698,2]
[419198963,1775017841585,-500.0,0.00013698,2]
[419198964,1775017841594,-500.0,0.00013698,2]
[419198965,1775017841603,-500.0,0.00013698,2]
[419198966,1775017841612,-500.0,0.00013698,2]
[419198967,1775017841623,-500.0,0.00013698,2]
[419198968,1775017841634,-500.0,0.00013698,2]
[419198969,1775017841643,-500.0,0.00013698,2]
[419198970,1775017841653,-541.25,0.00013698,2]
[419198971,1775017841663,-541.25,0.00013698,2]
[419198972,1775017841674,-541.25,0.00013698,2]
[419198973,1775017841684,-541.25,0.00013698,2]
[419198974,1775017841694,-541.25,0.00013698,2]
[419198975,1775017841703,-541.25,0.00013698,2]
[419198976,1775017841713,-541.25,0.00013698,2]
[419198977,1775017841723,-541.25,0.00013698,2]
[419198978,1775017841732,-541.25,0.00013698,2]
[419198979,1775017841741,-541.25,0.00013698,2]
[419198980,1775017841750,-541.25,0.00013698,2]
[419198981,1775017841760,-541.25,0.00013698,2]
[419198982,1775017841769,-500.0,0.00013698,2]
[419198983,1775017841781,-500.0,0.00013698,2]
[419198984,1775017841790,-501.35221985,0.00013698,2]
[419198985,1775017841800,-500.0,0.00013698,2]
[419198986,1775017841810,-500.0,0.00013698,2]
[419198987,1775017841819,-500.0,0.00013698,2]
[419198988,1775017841828,-500.0,0.00013698,2]
[419198989,1775017841836,-500.0,0.00013698,2]
[419198990,1775017841845,-500.0,0.00013698,2]
[419198991,1775017841855,-500.0,0.00013698,2]
[419198992,1775017841865,-500.0,0.00013698,2]
[419198993,1775017841875,-500.0,0.00013698,2]
[419198994,1775017841884,-500.0,0.00013698,2]
[419198995,1775017841895,-500.0,0.00013698,2]
[419198996,1775017841905,-500.0,0.00013698,2]
[419198997,1775017841914,-500.0,0.00013698,2]
[419198998,1775017841925,-500.0,0.00013698,2]
[419198999,1775017841934,-500.0,0.00013698,2]
[419199000,1775017841943,-500.0,0.00013698,2]
[419199001,1775017841955,-500.0,0.00013698,2]
[419199002,1775017841964,-500.0,0.00013698,2]
[419199003,1775017841975,-500.0,0.00013698,2]
[419199004,1775017841986,-500.0,0.00013698,2]
[419199005,1775017841998,-500.0,0.00013698,2]
[419199006,1775017842008,-500.0,0.00013698,2]
[419199007,1775017842019,-500.0,0.00013698,2]
[419199008,1775017842029,-500.0,0.00013698,2]
[419199009,1775017842038,-500.0,0.00013698,2]
[419199010,1775017842046,-500.0,0.00013698,2]
[419199011,1775017842058,-500.0,0.00013698,2]
[419199012,1775017842069,-500.0,0.00013698,2]
[419199013,1775017842078,-500.0,0.00013698,2]
[419199014,1775017842087,-500.0,0.00013698,2]
[419199015,1775017842097,-500.0,0.00013698,2]
[419199016,1775017842106,-500.0,0.00013698,2]
[419199017,1775017842115,-500.0,0.00013698,2]
[419199018,1775017842124,-500.0,0.00013698,2]
[419199019,1775017842135,-500.0,0.00013698,2]
[419199020,1775017842143,-500.0,0.00013698,2]
[419199021,1775017842153,-500.0,0.00013698,2]
[419199022,1775017842163,-500.0,0.00013698,2]
[419199023,1775017842173,-500.0,0.00013698,2]
[419199024,1775017842182,-561.2360171,0.00013698,2]
[419199025,1775017842192,-500.0,0.00013698,2]
[419199026,1775017842201,-500.0,0.00013698,2]
[419199027,1775017842211,-500.0,0.00013698,2]
[419199028,1775017842220,-500.0,0.00013698,2]
[419199029,1775017842229,-500.0,0.00013698,2]
[419199030,1775017842238,-500.0,0.00013698,2]
[419199031,1775017842248,-500.0,0.00013698,2]
[419199032,1775017842258,-500.0,0.00013698,2]
[419199033,1775017842268,-500.0,0.00013698,2]
[419199034,1775017842278,-500.0,0.00013698,2]
[419199035,1775017842287,-500.0,0.00013698,2]
[419199036,1775017842296,-500.0,0.00013698,2]
[419199037,1775017842305,-500.0,0.00013698,2]
[419199038,1775017842315,-500.0,0.00013698,2]
[419199039,1775017842325,-500.0,0.00013698,2]
[419199040,1775017842335,-500.0,0.00013698,2]
[419199041,1775017842344,-500.0,0.00013698,2]
[419199042,1775017842353,-500.0,0.00013698,2]
[419199043,1775017842362,-500.0,0.00013698,2]
[419199044,1775017842371,-500.0,0.00013698,2]
[419199045,1775017842380,-500.0,0.00013698,2]
[419199046,1775017842389,-500.0,0.00013698,2]
[419199047,1775017842399,-500.0,0.00013698,2]
[419199048,1775017842408,-500.0,0.00013698,2]
[419199049,1775017842417,-500.0,0.00013698,2]
[419199050,1775017842427,-500.0,0.00013698,2]
[419199051,1775017842436,-500.0,0.00013698,2]
[419199052,1775017842445,-500.0,0.00013698,2]
[419199053,1775017842454,-500.0,0.00013698,2]
[419199054,1775017842464,-500.0,0.00013698,2]
[419199055,1775017842473,-500.0,0.00013698,2]
[419199056,1775017842483,-175.33019501,0.00013698,2]
[419199057,1775017842491,-500.0,0.00013698,2]
[419199058,1775017842500,-500.0,0.00013698,2]
[419199059,1775017842510,-500.0,0.00013698,2]
[419199060,1775017842519,-500.0,0.00013698,2]
[419199061,1775017842528,-500.0,0.00013698,2]
[419199063,1775017842537,-500.0,0.00013698,2]
[419199065,1775017842547,-500.0,0.00013698,2]
[419199067,1775017842556,-500.0,0.00013698,2]
[419199068,1775017842566,-500.0,0.00013698,2]
[419199069,1775017842576,-500.0,0.00013698,2]
[419199071,1775017842586,-500.0,0.00013698,2]
[419199073,1775017842595,-500.0,0.00013698,2]
[419199075,1775017842605,-500.0,0.00013698,2]
[419199077,1775017842614,-500.0,0.00013698,2]
[419199078,1775017842624,-504.62510561,0.00013698,2]
[419199079,1775017842635,-500.0,0.00013698,2]
[419199080,1775017842643,-500.0,0.00013698,2]
[419199081,1775017842652,-500.0,0.00013698,2]
[419199082,1775017842662,-500.0,0.00013698,2]
[419199083,1775017842671,-500.0,0.00013698,2]
[419199085,1775017842680,-500.0,0.00013698,2]
[419199086,1775017842689,-500.0,0.00013698,2]
[419199087,1775017842698,-489.51900798,0.00013698,2]
[419199090,1775017842707,-500.0,0.00013698,2]
[419199092,1775017842716,-500.0,0.00013698,2]
[419199093,1775017842726,-500.0,0.00013698,2]
[419199094,1775017842735,-500.0,0.00013698,2]
[419199095,1775017842744,-502.04948952,0.00013698,2]
[419199097,1775017842754,-500.0,0.00013698,2]
[419199098,1775017842764,-500.0,0.00013698,2]
[419199099,1775017842775,-500.0,0.00013698,2]
[419199100,1775017842785,-500.0,0.00013698,2]
[419199101,1775017842794,-500.0,0.00013698,2]
[419199102,1775017842803,-500.0,0.00013698,2]
[419199103,1775017842814,-567.75072671,0.00013698,2]
[419199104,1775017842825,-189.71115292,0.00013698,2]
[419199105,1775017842835,-500.0,0.00013698,2]
[419199106,1775017842845,-500.0,0.00013698,2]
[419199107,1775017842854,-500.0,0.00013698,2]
[419199108,1775017842863,-500.0,0.00013698,2]
[419199109,1775017842872,-500.0,0.00013698,2]
[419199110,1775017842882,-500.0,0.00013698,2]
[419199111,1775017842892,-500.0,0.00013698,2]
[419199112,1775017842901,-500.0,0.00013698,2]
[419199113,1775017842911,-500.0,0.00013698,2]
[419199114,1775017842919,-500.0,0.00013698,2]
[419199115,1775017842929,-500.0,0.00013698,2]
[419199116,1775017842938,-500.0,0.00013698,2]
[419199117,1775017842948,-500.0,0.00013698,2]
[419199118,1775017842958,-500.0,0.00013698,2]
[419199119,1775017842968,-500.0,0.00013698,2]
[419199120,1775017842979,-500.0,0.00013698,2]
[419199121,1775017842990,-500.0,0.00013698,2]
[419199122,1775017843000,-500.0,0.00013698,2]
[419199123,1775017843011,-212.34445911,0.00013698,2]
[419199124,1775017843020,-500.0,0.00013698,2]
[419199125,1775017843030,-500.0,0.00013698,2]
[419199126,1775017843040,-500.0,0.00013698,2]
[419199127,1775017843051,-500.0,0.00013698,2]
[419199128,1775017843061,-500.0,0.00013698,2]
[419199129,1775017843071,-500.0,0.00013698,2]
[419199130,1775017843080,-500.0,0.00013698,2]
[419199131,1775017843089,-500.0,0.00013698,2]
[419199132,1775017843099,-500.0,0.00013698,2]
[419199133,1775017843109,-500.0,0.00013698,2]
[419199134,1775017843119,-500.0,0.00013698,2]
[419199135,1775017843128,-151.0,0.00013698,2]
[419199136,1775017843137,-500.0,0.00013698,2]
[419199137,1775017843147,-500.0,0.00013698,2]
[419199138,1775017843156,-500.0,0.00013698,2]
[419199139,1775017843165,-500.0,0.00013698,2]
[419199140,1775017843175,-500.0,0.00013698,2]
[419199141,1775017843184,-500.0,0.00013698,2]
[419199142,1775017843194,-500.0,0.00013698,2]
[419199143,1775017843203,-500.0,0.00013698,2]
[419199144,1775017843213,-500.0,0.00013698,2]
[419199145,1775017843222,-500.0,0.00013698,2]
[419199147,1775017843232,-500.0,0.00013698,2]
[419199149,1775017843241,-560.22,0.00013698,2]
[419199150,1775017843250,-560.22,0.00013698,2]
[419199151,1775017843260,-560.22,0.00013698,2]
[419199152,1775017843270,-560.22,0.00013698,2]
[419199153,1775017843279,-560.22,0.00013698,2]
[419199154,1775017843289,-560.22,0.00013698,2]
[419199155,1775017843299,-560.22,0.00013698,2]
[419199156,1775017843309,-560.22,0.00013698,2]
[419199157,1775017843318,-560.22,0.00013698,2]
[419199158,1775017843328,-560.22,0.00013698,2]
[419199160,1775017843338,-560.22,0.00013698,2]
[419199161,1775017843348,-500.0,0.00013698,2]
[419199162,1775017843357,-500.0,0.00013698,2]
[419199163,1775017843366,-500.0,0.00013698,2]
[419199164,1775017843376,-500.0,0.00013698,2]
[419199165,1775017843385,-500.0,0.00013698,2]
[419199167,1775017843395,-541.27886182,0.00013698,2]
[419199169,1775017843404,-8458.19,0.00013699,2]
[419199170,1775017843414,-175.69,0.00013699,2]
[419199172,1775017843424,-1190.47,0.00013699,2]
[419199173,1775017843433,-1563.07,0.00013699,2]
[419199174,1775017843443,-2511.98,0.00013699,2]
[419199175,1775017843452,-1907.24,0.00013699,2]
[419199176,1775017843462,-150.99,0.00013699,2]
[419199177,1775017843471,-9999.99,0.00013699,2]
[419199178,1775017843481,-4999.99,0.00013699,2]
[419199179,1775017843491,-999.99,0.00013699,2]
[419199180,1775017843501,-98374.1,0.00013699,2]
[419199181,1775017843510,-2633.33,0.00013699,2]
[419199182,1775017843520,-4060.56,0.00013699,2]
[419199183,1775017843529,-299.99,0.00013699,2]
[419199184,1775017843538,-150.0,0.00013699,2]
[419199185,1775017843548,-150.0,0.00013699,2]
[419199186,1775017843557,-150.0,0.00013699,2]
[419199187,1775017843566,-150.0,0.00013699,2]
[419199188,1775017843577,-177.300024,0.00013699,2]
[419199189,1775017843587,-177.300024,0.00013699,2]
[419199190,1775017843596,-177.300024,0.00013699,2]
[419199191,1775017843606,-177.300024,0.00013699,2]
[419199192,1775017843615,-177.300024,0.00013699,2]
[419199193,1775017843625,-177.300024,0.00013699,2]
[419199194,1775017843749,-177.300024,0.00013699,2]
[419199195,1775017843769,-177.300024,0.00013699,2]
[419199196,1775017843780,-158.5,0.00013699,2]
[419199197,1775017843790,-792.51,0.00013699,2]
[419199198,1775017843800,-151.0,0.00013699,2]
[419199199,1775017843810,-151.0,0.00013699,2]
[419199200,1775017843819,-153.423539,0.00013699,2]
[419199201,1775017843829,-166.099322,0.00013699,2]
[419199202,1775017843839,-166.099322,0.00013699,2]
[419199203,1775017843849,-166.099322,0.00013699,2]
[419199204,1775017843860,-166.099322,0.00013699,2]
[419199205,1775017843870,-166.099322,0.00013699,2]
[419199206,1775017843880,-166.099322,0.00013699,2]
[419199207,1775017843889,-166.099322,0.00013699,2]
[419199208,1775017843899,-166.099322,0.00013699,2]
[419199209,1775017843909,-500.0,0.00013699,2]
[419199210,1775017843919,-500.0,0.00013699,2]
[419199211,1775017843929,-500.37557038,0.00013699,2]
[419199212,1775017843938,-500.0,0.00013699,2]
[419199213,1775017843949,-500.0,0.00013699,2]
[419199214,1775017843958,-330.62596809,0.00013699,2]
[419199215,1775017843969,-500.0,0.00013699,2]
[419199216,1775017843979,-500.41125099,0.00013699,2]
[419199217,1775017843988,-500.0,0.00013699,2]
[419199218,1775017843998,-500.0,0.00013699,2]
[419199219,1775017844007,-500.0,0.00013699,2]
[419199220,1775017844016,-500.0,0.00013699,2]
[419199221,1775017844027,-627.00850068,0.00013699,2]
[419199222,1775017844037,-500.0,0.00013699,2]
[419199223,1775017844046,-500.0,0.00013699,2]
[419199224,1775017844055,-500.0,0.00013699,2]
[419199225,1775017844064,-500.0,0.00013699,2]
[419199226,1775017844074,-500.0,0.00013699,2]
[419199227,1775017844083,-500.0,0.00013699,2]
[419199228,1775017844093,-500.73578888,0.00013699,2]
[419199229,1775017844102,-500.0,0.00013699,2]
[419199230,1775017844111,-500.0,0.00013699,2]
[419199231,1775017844121,-500.0,0.00013699,2]
[419199232,1775017844130,-500.0,0.00013699,2]
[419199233,1775017844140,-500.0,0.00013699,2]
[419199234,1775017844150,-500.0,0.00013699,2]
[419199235,1775017844159,-500.0,0.00013699,2]
[419199236,1775017844169,-500.0,0.00013699,2]
[419199237,1775017844178,-312.57026801,0.00013699,2]
[419199238,1775017844187,-500.0,0.00013699,2]
[419199239,1775017844197,-518.48183381,0.00013699,2]
[419199240,1775017844207,-500.0,0.00013699,2]
[419199241,1775017844216,-342.86927072,0.00013699,2]
[419199242,1775017844225,-500.0,0.00013699,2]
[419199243,1775017844234,-500.0,0.00013699,2]
[419199244,1775017844244,-162.65551108,0.00013699,2]
[419199245,1775017844254,-1000.0,0.00013699,7]
[419199246,1775017844263,-500.0,0.00013699,2]
[419199247,1775017844272,-500.46369752,0.00013699,2]
[419199248,1775017844282,-500.0,0.00013699,2]
[419199249,1775017844291,-500.0,0.00013699,2]
[419199250,1775017844300,-500.0,0.00013699,2]
[419199251,1775017844310,-500.0,0.00013699,2]
[419199252,1775017844319,-500.0,0.00013699,2]
[419199253,1775017844329,-593.888307,0.00013699,2]
[419199254,1775017844338,-593.888307,0.00013699,2]
[419199255,1775017844348,-593.888307,0.00013699,2]
[419199256,1775017844357,-593.888307,0.00013699,2]
[419199257,1775017844366,-500.0,0.00013699,2]
[419199258,1775017844376,-384.30771869,0.00013699,2]
[419199259,1775017844386,-200.0,0.00013836,2]
[419199260,1775017844396,-2000.0,0.00013838,2]
[419199261,1775017844406,-150.0,0.00013973,2]
[419199262,1775017844415,-150.0,0.00013973,2]
[419199263,1775017844425,-150.0,0.00013973,2]
[419199264,1775017844435,-600.0,0.00013996,2]
[419199265,1775017844445,-666.0,0.00014005,2]
[419199266,1775017844454,-666.0,0.00014005,2]
[419199267,1775017844463,-60000.0,0.00014006,2]
[419199268,1775017844473,-151.0,0.00014006,2]
[419199269,1775017844482,-6453.0,0.00014235,2]
[419199270,1775017844492,-2129.0,0.0001424,2]
[419199271,1775017844502,-500.0,0.00014246,2]
[419199272,1775017844513,-500.0,0.00014246,2]
[419199273,1775017844522,-500.0,0.00014246,2]
[419199274,1775017844532,-500.0,0.00014246,2]
[419199275,1775017844541,-560.22,0.00014246,2]
[419199276,1775017844551,-150.0,0.00014247,2]
[419199277,1775017844560,-150.0,0.00014247,2]
[419199278,1775017844570,-225.93299573,0.00014247,2]
[419199279,1775017844582,-1000.0,0.00014247,2]
[419199280,1775017844591,-286.90994459,0.00014247,2]
[419199281,1775017844602,-1000.0,0.00014247,2]
[419199282,1775017844611,-1000.0,0.00014247,2]
[419199283,1775017844620,-227.65683647,0.00014247,2]
[419199284,1775017844629,-1000.6349201,0.00014247,2]
[419199285,1775017844638,-1045.35144381,0.00014247,2]
[419199286,1775017844648,-1000.0,0.00014247,2]
[419199287,1775017844657,-500.0,0.00014247,2]
[419199288,1775017844666,-1000.0,0.00014247,2]
[419199289,1775017844676,-1000.0,0.00014247,2]
[419199290,1775017844685,-1003.33065715,0.00014247,2]
[419199291,1775017844694,-1000.0,0.00014247,2]
[419199292,1775017844704,-1000.0,0.00014247,2]
[419199293,1775017844713,-1000.0,0.00014247,2]
[419199294,1775017844723,-501.28227298,0.00014247,2]
[419199295,1775017844732,-500.70157499,0.00014247,2]
[419199296,1775017844742,-1001.42434157,0.00014247,2]
[419199297,1775017844752,-1002.10813048,0.00014247,2]
[419199298,1775017844762,-1000.0,0.00014247,2]
[419199299,1775017844771,-1001.36590912,0.00014247,2]
[419199300,1775017844780,-1000.73007904,0.00014247,2]
[419199301,1775017844789,-289.69673863,0.00014247,2]
[419199302,1775017844799,-1000.0,0.00014247,2]
[419199303,1775017844808,-1000.0,0.00014247,2]
[419199304,1775017844817,-1000.0,0.00014247,2]
[419199305,1775017844827,-1000.0,0.00014247,2]
[419199306,1775017844836,-1001.12817302,0.00014247,2]
[419199307,1775017844846,-1000.0,0.00014247,2]